fUST/lending_fUST_20250815
["ID","MTS","AMOUNT","RATE_DAILY","PERIOD"]
[379372635,1755263442732,-73.30754556,0.00019178,2]
[379377729,1755263686277,416.74383272,0.0003,120]
[379377730,1755263713599,215.63758983,0.0003,120]
[379377755,1755263878824,1456.19,0.00023,30]
[379377852,1755264153976,5000.0,0.00030137,120]
[379377853,1755264168914,2500.0,0.00023,30]
[379377857,1755264198972,151.74,0.00022407,30]
[379377902,1755264441126,-352.14,0.00018736,2]
[379377903,1755264441146,-195.87021506,0.000189,2]
[379377904,1755264441166,-1546.52242904,0.00018964,2]
[379377905,1755264450076,-308.52621004,0.00018872,2]
[379377906,1755264450097,-54.17851989,0.00018964,2]
[379377907,1755264450117,-785.84315421,0.00018964,2]
[379377908,1755264450138,-734.5920131,0.00018972,2]
[379377932,1755264561098,-166.50192101,0.00018,2]
[379377933,1755264567089,-309.35905411,0.00018,2]
[379377934,1755264567110,-2415.52816769,0.000185,2]
[379377935,1755264567130,-51.25114109,0.00018972,2]
[379377936,1755264567152,-1200.0,0.00018979,2]
[379377937,1755264567173,-785.84315419,0.0001898,2]
[379377938,1755264567192,-369.95215916,0.0001898,2]
[379377939,1755264567213,-785.84315419,0.00018987,2]
[379377940,1755264567234,-500.0,0.00018994,2]
[379377941,1755264567254,-500.0,0.00018994,2]
[379377942,1755264567276,-500.0,0.00018994,2]
[379377943,1755264567305,-500.0,0.00018994,2]
[379377944,1755264567346,-500.0,0.00018994,2]
[379377945,1755264567386,-500.0,0.00018994,2]
[379377946,1755264567409,-547.07076008,0.00018994,2]
[379377947,1755264567432,-500.0,0.00018994,2]
[379377948,1755264567454,-500.0,0.00018994,2]
[379377949,1755264567474,-500.0,0.00018994,2]
[379377950,1755264567495,-500.0,0.00018994,2]
[379377951,1755264567516,-500.0,0.00018994,2]
[379377952,1755264567536,-500.0,0.00018994,2]
[379377953,1755264567556,-306.17661597,0.00018994,2]
[379377954,1755264567576,-500.0,0.00018994,2]
[379377955,1755264567596,-500.0,0.00018994,2]
[379377956,1755264567618,-500.0,0.00018994,2]
[379377957,1755264567638,-500.0,0.00018994,2]
[379377958,1755264567658,-500.0,0.00018994,2]
[379377959,1755264567678,-500.0,0.00018994,2]
[379377960,1755264567698,-197.65838404,0.00018994,2]
[379377961,1755264567718,-542.5192712,0.00018994,2]
[379377962,1755264567738,-500.0,0.00018994,2]
[379377963,1755264567760,-500.0,0.00018994,2]
[379377964,1755264567780,-297.94325235,0.00018994,2]
[379377965,1755264567800,-500.0,0.00018994,2]
[379377966,1755264567821,-500.0,0.00018994,2]
[379377967,1755264567842,-500.0,0.00018994,2]
[379377968,1755264567862,-500.0,0.00018994,2]
[379377969,1755264567883,-500.0,0.00018994,2]
[379377970,1755264567904,-500.0,0.00018994,2]
[379377971,1755264567924,-500.0,0.00018994,2]
[379377972,1755264567946,-500.0,0.00018994,2]
[379377973,1755264567967,-500.0,0.00018994,2]
[379377974,1755264567988,-500.0,0.00018994,2]
[379377975,1755264568009,-500.0,0.00018994,2]
[379377976,1755264568030,-500.0,0.00018994,2]
[379377977,1755264568054,-500.0,0.00018994,2]
[379377978,1755264568076,-500.0,0.00018994,2]
[379377979,1755264568098,-500.0,0.00018994,2]
[379377980,1755264568118,-500.0,0.00018994,2]
[379377981,1755264568138,-500.0,0.00018994,2]
[379377982,1755264568158,-500.0,0.00018994,2]
[379377983,1755264568179,-500.0,0.00018994,2]
[379377984,1755264568199,-500.0,0.00018994,2]
[379377985,1755264568218,-785.84315419,0.00018995,2]
[379377986,1755264568239,-13026.95373166,0.00018995,2]
[379377987,1755264568258,-369.95215916,0.00018995,2]
[379377988,1755264568278,-50000.0,0.00018995,2]
[379377989,1755264568305,-309.61770391,0.00019051,2]
[379377990,1755264568326,-341.63336784,0.00019062,2]
[379377991,1755264568473,-300.0,0.00019063,2]
[379377992,1755264568495,-1200.0,0.00019063,2]
[379377993,1755264568515,-590.83311129,0.00019063,2]
[379377994,1755264568536,-1124.06591369,0.00019063,2]
[379377995,1755264568557,-1124.06591369,0.00019063,2]
[379377996,1755264568578,-1124.06591369,0.00019063,2]
[379377997,1755264568599,-1124.06591369,0.00019063,2]
[379377998,1755264568620,-1124.06591369,0.00019063,2]
[379377999,1755264568642,-1124.06591369,0.00019063,2]
[379378000,1755264568664,-1124.06591369,0.00019063,2]
[379378001,1755264568892,-1124.06591369,0.00019063,2]
[379378002,1755264568916,-1124.06591369,0.00019063,2]
[379378003,1755264568938,-1124.06591369,0.00019063,2]
[379378004,1755264568960,-1180.26920938,0.00019063,2]
[379378005,1755264568981,-1180.26920938,0.00019063,2]
[379378006,1755264569002,-1180.26920938,0.00019063,2]
[379378007,1755264569023,-1180.26920938,0.00019063,2]
[379378008,1755264569044,-1180.26920938,0.00019063,2]
[379378009,1755264569064,-1180.26920938,0.00019063,2]
[379378010,1755264569086,-1127.81280008,0.00019063,2]
[379378011,1755264569109,-1127.81280008,0.00019063,2]
[379378012,1755264569132,-1127.81280008,0.00019063,2]
[379378013,1755264569153,-1127.81280008,0.00019063,2]
[379378014,1755264569174,-1127.81280008,0.00019063,2]
[379378015,1755264569195,-1127.81280008,0.00019063,2]
[379378016,1755264569216,-1127.81280008,0.00019063,2]
[379378017,1755264569238,-1127.81280007,0.00019063,2]
[379378018,1755264569260,-1127.81280007,0.00019063,2]
[379378019,1755264569282,-1127.81280007,0.00019063,2]
[379378020,1755264569302,-24041.60902249,0.00019065,2]
[379378021,1755264569327,-1767.9,0.00019068,3]
[379378022,1755264569348,-883.95,0.00019068,3]
[379378023,1755264569368,-441.98,0.00019068,3]
[379378024,1755264569388,-220.99,0.00019068,3]
[379378025,1755264569409,-662.99,0.00019068,3]
[379378026,1755264569428,-500.0,0.00019073,2]
[379378027,1755264569448,-500.0,0.00019073,2]
[379378028,1755264569470,-500.0,0.00019073,2]
[379378029,1755264569490,-500.0,0.00019073,2]
[379378030,1755264569509,-500.0,0.00019073,2]
[379378031,1755264569529,-500.0,0.00019073,2]
[379378032,1755264569549,-192.9908034,0.00019073,2]
[379378033,1755264569568,-500.0,0.00019073,2]
[379378034,1755264569590,-300237.1339122,0.00019078,2]
[379378040,1755264598356,183.526164,0.00013699,2]
[379378070,1755264632112,-338.34384001,0.00019063,2]
[379378071,1755264632123,-500.0,0.00019073,2]
[379378072,1755264632133,-500.0,0.00019073,2]
[379378073,1755264632143,-248.52026501,0.00019073,2]
[379378075,1755264632159,-251.47973499,0.00019073,2]
[379378077,1755264632170,-500.0,0.00019073,2]
[379378078,1755264632180,-500.0,0.00019073,2]
[379378079,1755264632190,-300.0,0.00019077,2]
[379378080,1755264632200,-1200.0,0.00019077,2]
[379378081,1755264632211,-170.81668393,0.00019078,2]
[379378082,1755264632221,-288.01215939,0.00019078,2]
[379378105,1755264638117,-282.50214125,0.00019077,2]
[379378107,1755264638126,-500.0,0.00019077,2]
[379378109,1755264638137,-379.79432524,0.00019077,2]
[379378111,1755264638146,-500.0,0.00019077,2]
[379378113,1755264638156,-69474.85392841,0.00019078,2]
[379378115,1755264638167,-824.67845135,0.00019094,2]
[379378117,1755264638176,-824.67845135,0.00019094,2]
[379378119,1755264638186,-413.5831779,0.00019094,2]
[379378121,1755264638195,-824.67845135,0.00019094,2]
[379378123,1755264638205,-824.67845135,0.00019094,2]
[379378125,1755264638214,-824.67845135,0.00019094,2]
[379378127,1755264638223,-824.67845135,0.00019094,2]
[379378129,1755264638233,-824.67845135,0.00019094,2]
[379378131,1755264638243,-824.67845135,0.00019094,2]
[379378133,1755264638253,-824.67845135,0.00019094,2]
[379378135,1755264638262,-824.67845135,0.00019094,2]
[379378137,1755264638271,-824.67845135,0.00019094,2]
[379378139,1755264638280,-824.67845135,0.00019094,2]
[379378141,1755264638289,-824.67845135,0.00019094,2]
[379378143,1755264638298,-824.67845135,0.00019094,2]
[379378145,1755264638308,-824.67845135,0.00019094,2]
[379378147,1755264638317,-824.67845135,0.00019094,2]
[379378149,1755264638330,-500.0,0.00019095,2]
[379378151,1755264638340,-151.0,0.00019095,2]
[379378153,1755264638349,-151.0,0.00019095,2]
[379378155,1755264638359,-500.0,0.00019095,2]
[379378157,1755264638369,-151.0,0.00019095,2]
[379378159,1755264638378,-151.0,0.00019095,2]
[379378161,1755264638387,-500.0,0.00019095,2]
[379378163,1755264638397,-151.0,0.00019095,2]
[379378165,1755264638407,-151.0,0.00019095,2]
[379378167,1755264638419,-151.0,0.00019095,2]
[379378169,1755264638429,-9955.35857281,0.00019095,2]
[379378171,1755264638442,-7887.16387519,0.00019095,2]
[379378173,1755264638451,-151.0,0.00019095,2]
[379378175,1755264638460,-151.0,0.00019095,2]
[379378177,1755264638469,-151.0,0.00019095,2]
[379378179,1755264638479,-151.0,0.00019095,2]
[379378181,1755264638488,-151.0,0.00019095,2]
[379378183,1755264638497,-500.0,0.00019095,2]
[379378185,1755264638506,-151.0,0.00019095,2]
[379378186,1755264638515,-151.0,0.00019095,2]
[379378187,1755264638525,-151.0,0.00019095,2]
[379378188,1755264638534,-151.0,0.00019095,2]
[379378189,1755264638543,-151.0,0.00019095,2]
[379378190,1755264638552,-500.0,0.00019095,2]
[379378191,1755264638562,-151.0,0.00019095,2]
[379378192,1755264638571,-151.0,0.00019095,2]
[379378193,1755264638581,-151.0,0.00019095,2]
[379378194,1755264638590,-500.0,0.00019095,2]
[379378195,1755264638599,-130.17398651,0.00019095,2]
[379378196,1755264638611,-20.82601349,0.00019095,2]
[379378197,1755264638620,-151.0,0.00019095,2]
[379378198,1755264638630,-151.0,0.00019095,2]
[379378199,1755264638639,-151.0,0.00019095,2]
[379378200,1755264638648,-151.0,0.00019095,2]
[379378201,1755264638657,-151.0,0.00019095,2]
[379378203,1755264638667,-500.0,0.00019095,2]
[379378204,1755264638676,-151.0,0.00019095,2]
[379378205,1755264638685,-151.0,0.00019095,2]
[379378207,1755264638694,-151.0,0.00019095,2]
[379378209,1755264638704,-151.0,0.00019095,2]
[379378211,1755264638712,-151.0,0.00019095,2]
[379378213,1755264638722,-500.0,0.00019095,2]
[379378215,1755264638730,-151.0,0.00019095,2]
[379378217,1755264638739,-151.0,0.00019095,2]
[379378219,1755264638749,-151.0,0.00019095,2]
[379378221,1755264638758,-46.32570213,0.00019095,2]
[379378224,1755264638778,-104.67429787,0.00019095,2]
[379378226,1755264638787,-151.0,0.00019095,2]
[379378228,1755264638797,-151.0,0.00019095,2]
[379378230,1755264638806,-500.0,0.00019095,2]
[379378232,1755264638815,-151.0,0.00019095,2]
[379378234,1755264638824,-90.34560421,0.00019095,2]
[379378342,1755264639852,-60.65439579,0.00019095,2]
[379378344,1755264639861,-151.0,0.00019095,2]
[379378346,1755264639870,-151.0,0.00019095,2]
[379378347,1755264639880,-151.0,0.00019095,2]
[379378349,1755264639889,-85.69560421,0.00019095,2]
[379378353,1755264639911,-65.30439579,0.00019095,2]
[379378355,1755264639924,-500.0,0.00019095,2]
[379378357,1755264639934,-151.0,0.00019095,2]
[379378359,1755264639943,-151.0,0.00019095,2]
[379378361,1755264639953,-151.0,0.00019095,2]
[379378363,1755264639962,-500.0,0.00019095,2]
[379378365,1755264639972,-151.0,0.00019095,2]
[379378367,1755264639982,-151.0,0.00019095,2]
[379378369,1755264639993,-151.0,0.00019095,2]
[379378371,1755264640003,-151.0,0.00019095,2]
[379378373,1755264640013,-151.0,0.00019095,2]
[379378375,1755264640023,-151.0,0.00019095,2]
[379378376,1755264640032,-151.0,0.00019095,2]
[379378378,1755264640041,-151.0,0.00019095,2]
[379378380,1755264640051,-151.0,0.00019095,2]
[379378382,1755264640060,-151.0,0.00019095,2]
[379378384,1755264640069,-26.78772275,0.00019095,2]
[379378386,1755264640081,-124.21227725,0.00019095,2]
[379378388,1755264640090,-591.46406685,0.00019095,2]
[379378391,1755264640102,-1591.85403502,0.00019095,2]
[379378393,1755264640112,-151.0,0.00019095,2]
[379378395,1755264640121,-151.0,0.00019095,2]
[379378397,1755264640131,-151.0,0.00019095,2]
[379378398,1755264640140,-151.0,0.00019095,2]
[379378400,1755264640150,-151.0,0.00019095,2]
[379378402,1755264640159,-151.0,0.00019095,2]
[379378404,1755264640174,-151.0,0.00019095,2]
[379378406,1755264640183,-151.0,0.00019095,2]
[379378408,1755264640193,-151.0,0.00019095,2]
[379378410,1755264640202,-151.0,0.00019095,2]
[379378412,1755264640211,-151.0,0.00019095,2]
[379378414,1755264640221,-151.0,0.00019095,2]
[379378416,1755264640230,-300.0,0.00019095,2]
[379378418,1755264640241,-151.0,0.00019095,2]
[379378420,1755264640250,-151.0,0.00019095,2]
[379378422,1755264640259,-151.0,0.00019095,2]
[379378424,1755264640268,-151.0,0.00019095,2]
[379378426,1755264640278,-151.0,0.00019095,2]
[379378428,1755264640287,-151.0,0.00019095,2]
[379378430,1755264640297,-151.0,0.00019095,2]
[379378432,1755264640307,-151.0,0.00019095,2]
[379378434,1755264640320,-151.0,0.00019095,2]
[379378436,1755264640332,-151.0,0.00019095,2]
[379378438,1755264640341,-151.0,0.00019095,2]
[379378439,1755264640350,-151.0,0.00019095,2]
[379378441,1755264640362,-300.0,0.00019095,2]
[379378443,1755264640371,-151.0,0.00019095,2]
[379378445,1755264640381,-198.13274833,0.00019095,2]
[379378447,1755264640390,-151.0,0.00019095,2]
[379378449,1755264640400,-151.0,0.00019095,2]
[379378451,1755264640410,-151.0,0.00019095,2]
[379378453,1755264640423,-300.0,0.00019095,2]
[379378455,1755264640433,-151.0,0.00019095,2]
[379378457,1755264640442,-151.0,0.00019095,2]
[379378459,1755264640452,-151.0,0.00019095,2]
[379378461,1755264640461,-300.0,0.00019095,2]
[379378463,1755264640470,-151.0,0.00019095,2]
[379378465,1755264640482,-151.0,0.00019095,2]
[379378467,1755264640492,-151.0,0.00019095,2]
[379378469,1755264640502,-300.0,0.00019095,2]
[379378471,1755264640512,-300.0,0.00019095,2]
[379378473,1755264640521,-500.0,0.00019095,2]
[379378475,1755264640530,-300.0,0.00019095,2]
[379378477,1755264640540,-500.0,0.00019095,2]
[379378479,1755264640549,-300.0,0.00019095,2]
[379378481,1755264640558,-500.0,0.00019095,2]
[379378483,1755264640567,-300.0,0.00019095,2]
[379378485,1755264640576,-300.0,0.00019095,2]
[379378487,1755264640585,-500.0,0.00019095,2]
[379378489,1755264640595,-500.0,0.00019095,2]
[379378491,1755264640605,-300.0,0.00019095,2]
[379378493,1755264640614,-151.0,0.00019095,2]
[379378494,1755264640623,-500.0,0.00019095,2]
[379378496,1755264640632,-300.0,0.00019095,2]
[379378498,1755264640642,-256.43342021,0.00019095,2]
[379378500,1755264640651,-151.0,0.00019095,2]
[379378502,1755264640661,-500.0,0.00019095,2]
[379378504,1755264640676,-303.37780865,0.00019095,2]
[379378506,1755264640685,-151.0,0.00019095,2]
[379378508,1755264640695,-151.0,0.00019095,2]
[379378510,1755264640704,-151.0,0.00019095,2]
[379378512,1755264640714,-151.0,0.00019095,2]
[379378514,1755264640723,-151.0,0.00019095,2]
[379378516,1755264640734,-151.0,0.00019095,2]
[379378518,1755264640744,-151.0,0.00019095,2]
[379378520,1755264640753,-151.0,0.00019095,2]
[379378522,1755264640763,-2264.10087164,0.0001915,2]
[379378524,1755264640783,-1104.94,0.00019168,3]
[379378526,1755264640794,-2690.31827841,0.00019178,2]
[379378528,1755264640803,-462.31296369,0.00019178,2]
[379378530,1755264640813,-460.0,0.00019178,2]
[379378532,1755264640823,-460.0,0.00019178,2]
[379378534,1755264640832,-460.0,0.00019178,2]
[379378536,1755264640843,-460.0,0.00019178,2]
[379378538,1755264640852,-460.0,0.00019178,2]
[379378540,1755264640862,-541.4952272,0.00019178,2]
[379378542,1755264640871,-460.0,0.00019178,2]
[379378544,1755264640880,-460.0,0.00019178,2]
[379378546,1755264640890,-460.0,0.00019178,2]
[379378548,1755264640899,-460.0,0.00019178,2]
[379378550,1755264640909,-460.0,0.00019178,2]
[379378552,1755264640926,-460.0,0.00019178,2]
[379378554,1755264640936,-460.0,0.00019178,2]
[379378556,1755264640947,-461.23788087,0.00019178,2]
[379378558,1755264640956,-461.66191109,0.00019178,2]
[379378560,1755264640966,-555.34192878,0.00019178,2]
[379378562,1755264640975,-460.0,0.00019178,2]
[379378564,1755264640984,-460.0,0.00019178,2]
[379378566,1755264640994,-464.10314022,0.00019178,2]
[379378568,1755264641003,-460.0,0.00019178,2]
[379378570,1755264641013,-460.0,0.00019178,2]
[379378572,1755264641023,-460.0,0.00019178,2]
[379378574,1755264641032,-460.0,0.00019178,2]
[379378576,1755264641041,-460.0,0.00019178,2]
[379378578,1755264641051,-440.54791943,0.00019178,2]
[379378580,1755264641060,-460.0,0.00019178,2]
[379378582,1755264641069,-460.0,0.00019178,2]
[379378584,1755264641078,-460.0,0.00019178,2]
[379378586,1755264641087,-460.0,0.00019178,2]
[379378588,1755264641095,-178.47330037,0.00019178,2]
[379378590,1755264641104,-460.0,0.00019178,2]
[379378591,1755264641113,-460.0,0.00019178,2]
[379378593,1755264641123,-460.0,0.00019178,2]
[379378595,1755264641133,-460.0,0.00019178,2]
[379378597,1755264641142,-460.0,0.00019178,2]
[379378599,1755264641152,-466.44,0.00019178,2]
[379378601,1755264641161,-460.0,0.00019178,2]
[379378603,1755264641175,-460.0,0.00019178,2]
[379378605,1755264641183,-460.0,0.00019178,2]
[379378607,1755264641193,-460.0,0.00019178,2]
[379378609,1755264641202,-460.0,0.00019178,2]
[379378611,1755264641211,-887.99,0.00019178,2]
[379378613,1755264641221,-460.0,0.00019178,2]
[379378615,1755264641230,-460.0,0.00019178,2]
[379378617,1755264641240,-460.0,0.00019178,2]
[379378619,1755264641249,-460.0,0.00019178,2]
[379378621,1755264641258,-460.0,0.00019178,2]
[379378623,1755264641268,-460.0,0.00019178,2]
[379378625,1755264641277,-460.0,0.00019178,2]
[379378627,1755264641286,-460.0,0.00019178,2]
[379378629,1755264641295,-460.0,0.00019178,2]
[379378630,1755264641304,-460.0,0.00019178,2]
[379378631,1755264641316,-460.0,0.00019178,2]
[379378632,1755264641326,-1664.28,0.00019178,2]
[379378633,1755264641335,-460.0,0.00019178,2]
[379378634,1755264641344,-190.61381135,0.00019178,2]
[379378635,1755264641354,-460.0,0.00019178,2]
[379378636,1755264641364,-460.0,0.00019178,2]
[379378637,1755264641373,-460.0,0.00019178,2]
[379378638,1755264641383,-334.32241536,0.00019178,2]
[379378639,1755264641393,-460.0,0.00019178,2]
[379378640,1755264641403,-460.0,0.00019178,2]
[379378641,1755264641413,-460.0,0.00019178,2]
[379378642,1755264641425,-794.58,0.00019178,2]
[379378643,1755264641434,-472.17585176,0.00019178,2]
[379378644,1755264641553,-959.01,0.00019178,2]
[379378645,1755264641563,-959.01,0.00019178,2]
[379378646,1755264641574,-959.01,0.00019178,2]
[379378647,1755264641583,-959.01,0.00019178,2]
[379378648,1755264641592,-215.75211929,0.00019178,2]
[379379068,1755264645927,-1400.61333027,0.00018995,2]
[379379070,1755264645936,-151.0,0.00019095,2]
[379379071,1755264645946,-151.0,0.00019095,2]
[379379073,1755264645955,-151.0,0.00019095,2]
[379379075,1755264645964,-151.0,0.00019095,2]
[379379077,1755264645973,-151.0,0.00019095,2]
[379379079,1755264645983,-151.0,0.00019095,2]
[379379081,1755264645991,-244.24788071,0.00019178,2]
[379379083,1755264646001,-577.08,0.00019178,2]
[379379085,1755264646010,-460.0,0.00019178,2]
[379379087,1755264646019,-460.0,0.00019178,2]
[379379089,1755264646029,-2347.87260389,0.00019205,2]
[379379091,1755264646039,-2434.74389024,0.0001926,2]
[379379093,1755264646048,-600.0,0.000193,2]
[379379095,1755264646057,-2546.03673783,0.00019307,2]
[379379096,1755264646067,-1164.48473283,0.00019315,2]
[379379099,1755264646080,-18.53489969,0.00019315,2]
[379379101,1755264646090,-500.0,0.00019368,2]
[379379103,1755264646099,-959.01,0.00019386,2]
[379379105,1755264646109,-712.68680208,0.00019395,2]
[379379106,1755264646119,-315.36829872,0.00019395,2]
[379379109,1755264646135,-806.64838715,0.00019395,2]
[379383841,1755264932177,215.63758983,0.0003,120]
[379384657,1755265558906,183.526164,0.00013699,2]
[379385250,1755265629158,-209.45326442,0.00016629,2]
[379385254,1755265636080,-1519.27725805,0.00016629,2]
[379385255,1755265636101,-6407.76703754,0.00016629,2]
[379385256,1755265636124,-1200.0,0.00017502,2]
[379385257,1755265636147,-300.0,0.00017503,2]
[379385258,1755265636169,-300.0,0.00017503,2]
[379385259,1755265636192,-300.0,0.00017503,2]
[379385260,1755265636214,-1200.0,0.00017503,2]
[379385261,1755265636236,-300.0,0.00017503,2]
[379385263,1755265636263,-200.0,0.00017852,2]
[379385264,1755265636289,-200.0,0.00017852,2]
[379385265,1755265636313,-200.0,0.00017852,2]
[379385266,1755265636339,-200.0,0.00017852,2]
[379385267,1755265636363,-200.0,0.00017852,2]
[379385268,1755265636387,-200.0,0.00017852,2]
[379385269,1755265636407,-1623.337266,0.00017871,2]
[379385270,1755265636428,-18158.57418447,0.00017872,2]
[379385274,1755265645092,-188.31398972,0.00017872,2]
[379385480,1755265832430,-5000.0,0.00018513,2]
[379385481,1755265832439,-600.18619404,0.000187,2]
[379385482,1755265832451,-706.08581735,0.000187,2]
[379385483,1755265832468,-408.37092299,0.00018785,2]
[379385484,1755265832478,-408.37092295,0.00018789,2]
[379385485,1755265832487,-408.37092295,0.00018793,2]
[379385486,1755265832497,-300.0,0.00018794,2]
[379385487,1755265832506,-967.8671255,0.00018794,2]
[379385493,1755265838295,-5000.0,0.00018606,2]
[379385494,1755265838305,-232.1328745,0.00018794,2]
[379385495,1755265838315,-2345.53775233,0.00018795,2]
[379385496,1755265838335,-2547.20648903,0.00018795,2]
[379385497,1755265838483,-1063.96716672,0.00018795,2]
[379385498,1755265838495,-42.87595327,0.00018795,2]
[379385499,1755265838504,-408.37092295,0.00018796,2]
[379385500,1755265838514,-151.0,0.00018799,2]
[379385501,1755265838523,-151.0,0.00018799,2]
[379385502,1755265838532,-151.0,0.000188,2]
[379385503,1755265838542,-151.0,0.000188,2]
[379385504,1755265838551,-468.0,0.000188,2]
[379385505,1755265838561,-468.0,0.000188,2]
[379385506,1755265838571,-151.0,0.000188,2]
[379385507,1755265838580,-151.0,0.000188,2]
[379385508,1755265838589,-151.0,0.000188,2]
[379385510,1755265838598,-8684.63582112,0.000188,2]
[379385512,1755265838608,-408.37092295,0.000188,2]
[379385514,1755265838621,-500.0,0.00018876,2]
[379385516,1755265838630,-462.3728477,0.00018876,2]
[379385517,1755265838643,-37.6271523,0.00018876,2]
[379385518,1755265838652,-500.0,0.00018876,2]
[379385519,1755265838662,-500.0,0.00018876,2]
[379385520,1755265838671,-500.0,0.00018876,2]
[379385521,1755265838681,-500.0,0.00018876,2]
[379385522,1755265838692,-500.0,0.00018876,2]
[379385523,1755265838702,-500.0,0.00018876,2]
[379385524,1755265838712,-500.0,0.00018876,2]
[379385525,1755265838721,-500.0,0.00018876,2]
[379385526,1755265838731,-547.07076008,0.00018876,2]
[379385527,1755265838740,-500.0,0.00018876,2]
[379385528,1755265838749,-500.0,0.00018876,2]
[379385529,1755265838759,-500.0,0.00018876,2]
[379385530,1755265838768,-500.0,0.00018876,2]
[379385531,1755265838777,-197.65838404,0.00018876,2]
[379385532,1755265838786,-500.0,0.00018876,2]
[379385533,1755265838796,-500.0,0.00018876,2]
[379385534,1755265838806,-500.0,0.00018876,2]
[379385535,1755265838815,-500.0,0.00018876,2]
[379385536,1755265838825,-288.26734408,0.00018876,2]
[379385537,1755265838834,-500.0,0.00018876,2]
[379385538,1755265838843,-500.0,0.00018876,2]
[379385539,1755265838853,-500.0,0.00018876,2]
[379385540,1755265838862,-306.17661597,0.00018876,2]
[379385541,1755265838872,-500.0,0.00018876,2]
[379385542,1755265838882,-500.0,0.00018876,2]
[379385543,1755265838894,-500.0,0.00018876,2]
[379385544,1755265838904,-500.0,0.00018876,2]
[379385545,1755265838913,-500.0,0.00018876,2]
[379385546,1755265838923,-500.0,0.00018876,2]
[379385547,1755265838932,-500.0,0.00018876,2]
[379385548,1755265838942,-500.0,0.00018876,2]
[379385549,1755265838951,-500.0,0.00018876,2]
[379385550,1755265838961,-500.0,0.00018876,2]
[379385551,1755265838971,-500.0,0.00018876,2]
[379385552,1755265838980,-500.0,0.00018876,2]
[379385553,1755265838989,-500.0,0.00018876,2]
[379385554,1755265838999,-156.12835964,0.00018876,2]
[379385555,1755265839008,-500.0,0.00018876,2]
[379385556,1755265839018,-500.0,0.00018877,2]
[379385557,1755265839029,-198.0,0.00018877,2]
[379385558,1755265839040,-151.0,0.00018877,2]
[379385559,1755265839049,-152.90992746,0.00018878,2]
[379385560,1755265839058,-16401.16145643,0.00018878,2]
[379385561,1755265839070,-7640.44756606,0.00018878,2]
[379385562,1755265839080,-151.0,0.00018893,2]
[379385563,1755265839089,-692.72989914,0.00018894,2]
[379385564,1755265839098,-289.50822453,0.00018894,2]
[379385565,1755265839108,-692.72989914,0.00018894,2]
[379385566,1755265839117,-692.72989914,0.00018894,2]
[379385567,1755265839127,-692.72989914,0.00018894,2]
[379385568,1755265839136,-692.72989914,0.00018894,2]
[379385569,1755265839145,-692.72989914,0.00018894,2]
[379385570,1755265839155,-692.72989914,0.00018894,2]
[379385571,1755265839165,-692.72989914,0.00018894,2]
[379385572,1755265839175,-692.72989914,0.00018894,2]
[379385573,1755265839184,-692.72989914,0.00018894,2]
[379385574,1755265839194,-692.72989914,0.00018894,2]
[379385575,1755265839203,-423.26071626,0.00018894,2]
[379385581,1755265839784,-269.46918288,0.00018894,2]
[379385582,1755265839793,-692.72989914,0.00018894,2]
[379385583,1755265839802,-692.72989914,0.00018894,2]